bitfinex-derivatives/quotes_BTCF0:USTF0_20241117
["timestamp","ask_amount","ask_price","bid_price","bid_amount"]
[1731863892774,0.16513484,90286.0,90285.0,0.055377]
[1731863892977,0.2206081,90287.0,90285.0,0.055377]
[1731863893581,0.1652321,90287.0,90285.0,0.055377]
[1731863893777,9.726e-05,90287.0,90285.0,0.055377]
[1731863894171,0.13190776,90286.0,90285.0,0.055377]
[1731863894373,0.13189119,90286.0,90285.0,0.055377]
[1731863894567,0.05547326,90287.0,90285.0,0.055377]
[1731863894568,0.18736445,90287.0,90285.0,0.055377]
[1731863894774,9.726e-05,90287.0,90285.0,0.055377]
[1731863894987,9.726e-05,90287.0,90286.0,0.3608]
[1731863895185,9.726e-05,90287.0,90285.0,0.055377]
[1731863899206,9.726e-05,90287.0,90285.0,0.10453154]
[1731863900790,0.055379,90282.0,90281.0,0.3608]
[1731863901091,0.055379,90282.0,90273.0,0.00108]
[1731863901092,0.055377,90286.0,90273.0,0.00108]
[1731863901296,0.055384,90274.0,90272.0,0.055385]
[1731863903496,0.3608,90275.0,90264.0,0.3608]
[1731863903695,0.055389,90265.0,90264.0,0.3608]
[1731863905790,0.055389,90265.0,90261.0,9.998e-05]
[1731863905791,0.05539,90263.0,90261.0,9.998e-05]
[1731863906935,0.3608,90266.0,90262.0,0.055391]
[1731863907089,0.416189,90266.0,90262.0,0.055391]
[1731863907492,0.416189,90266.0,90261.0,9.998e-05]
[1731863907493,0.45631508,90266.0,90261.0,9.998e-05]
[1731863907707,0.055391,90262.0,90261.0,9.998e-05]
[1731863908092,0.387751,90262.0,90261.0,9.8e-07]
[1731863908292,0.9149183,90262.0,90261.0,9.8e-07]
[1731863908489,0.72787508,90262.0,90237.0,0.0051]
[1731863908701,0.72787508,90262.0,90224.0,0.055414]
[1731863908702,0.05541,90232.0,90224.0,0.055414]
[1731863909202,0.3608,90238.0,90229.0,0.09551508]
[1731863909403,0.3608,90238.0,90237.0,0.09551508]
[1731863909710,0.00013757,90238.0,90234.0,0.055408]
[1731863910000,0.00013757,90238.0,90236.0,0.055407]
[1731863910596,0.00013757,90238.0,90237.0,0.09551508]
[1731863911006,0.00013757,90238.0,90236.0,0.055407]
[1731863911506,0.00013757,90238.0,90236.0,0.387847]
[1731863911799,0.02216983,90256.0,90252.0,0.055397]
[1731863912003,0.02216983,90256.0,90255.0,0.055395]
[1731863912412,0.3608,90261.0,90259.0,0.055393]
[1731863912598,0.16468433,90260.0,90259.0,0.055393]
[1731863916807,0.16468433,90260.0,90259.0,0.086493]
[1731863917103,0.16468433,90260.0,90259.0,0.0968847]
[1731863917900,0.16468433,90260.0,90259.0,0.086493]
[1731863920413,0.16468433,90260.0,90259.0,0.13681916]
[1731863920809,0.00012407,90260.0,90259.0,0.13681916]
[1731863922523,0.00012407,90260.0,90259.0,0.14721154]
[1731863923109,0.00012407,90260.0,90259.0,0.34567443]
[1731863923301,0.3608,90275.0,90259.0,0.34567443]
[1731863923302,0.3608,90275.0,90274.0,0.055384]
[1731863924396,0.36092733,90275.0,90274.0,0.055384]
[1731863925207,0.055386,90271.0,90269.0,0.055387]
[1731863925504,0.36092733,90275.0,90272.0,0.055385]
[1731863925813,0.41631033,90275.0,90272.0,0.055385]
[1731863926110,0.36092733,90275.0,90272.0,0.055385]
[1731863926339,0.055384,90274.0,90272.0,0.055385]
[1731863926913,0.36092733,90275.0,90274.0,0.055384]
[1731863928617,0.00012733,90275.0,90274.0,0.055384]
[1731863931682,0.00012733,90275.0,90274.0,0.10435082]
[1731863931869,0.00012733,90275.0,90274.0,0.30310584]
[1731863932288,0.00012733,90275.0,90274.0,0.30306333]
[1731863932487,0.00012733,90275.0,90274.0,0.10435082]
[1731863932985,0.00012733,90275.0,90274.0,0.16495082]
[1731863934675,0.00012733,90275.0,90274.0,0.44022424]
[1731863934877,0.00012733,90275.0,90274.0,0.42983397]
[1731863935282,0.00012733,90275.0,90274.0,0.16495082]
[1731863935489,0.00012733,90275.0,90274.0,0.175341]
[1731863935684,0.00012733,90275.0,90274.0,0.16495082]
[1731863935888,0.00012733,90275.0,90274.0,0.42980186]
[1731863936381,0.00012733,90275.0,90274.0,0.16495082]
[1731863936575,0.00012733,90275.0,90274.0,0.42980186]
[1731863936777,0.00012733,90275.0,90274.0,0.16495082]
[1731863936990,0.00012733,90275.0,90274.0,0.42980186]
[1731863937378,0.00012733,90275.0,90274.0,0.16495082]
[1731863938086,0.00012733,90275.0,90274.0,0.42980186]
[1731863938277,0.00012733,90275.0,90274.0,0.16495082]
[1731863941686,0.00012733,90275.0,90274.0,0.17534094]
[1731863941989,0.00012733,90275.0,90274.0,0.50113208]
[1731863942491,0.00012733,90275.0,90274.0,0.50114897]
[1731863942683,0.00012733,90275.0,90274.0,0.37431979]
[1731863943277,0.00012733,90275.0,90274.0,0.17534094]
[1731863944009,0.0052,90280.0,90274.0,0.45227694]
[1731863944181,0.16497306,90295.0,90283.0,0.09551508]
[1731863944383,0.16497306,90297.0,90294.0,0.45631508]
[1731863944593,0.16497306,90297.0,90296.0,0.05537]
[1731863944791,0.16497306,90299.0,90298.0,0.055369]
[1731863945005,0.16509286,90299.0,90298.0,0.055369]
[1731863945295,0.0001198,90299.0,90298.0,0.055369]
[1731863945498,0.16526703,90299.0,90298.0,0.055369]
[1731863945991,0.055371,90295.0,90294.0,0.00108]
[1731863946288,0.055373,90291.0,90290.0,8.152e-05]
[1731863946489,0.10923677,90291.0,90290.0,8.152e-05]
[1731863948084,0.25224158,90291.0,90290.0,8.152e-05]
[1731863948283,0.25224158,90291.0,90290.0,0.05545552]
[1731863948284,0.05386377,90291.0,90290.0,0.05545552]
[1731863949691,0.3608,90292.0,90290.0,0.05545552]
[1731863950402,0.416173,90293.0,90290.0,0.05545552]
[1731863951484,0.416173,90293.0,90290.0,0.25443063]
[1731863952401,0.3608,90293.0,90292.0,0.055373]
[1731863953993,0.416172,90293.0,90292.0,0.055373]
[1731863956395,0.416172,90293.0,90292.0,0.25434811]
[1731863957298,0.416172,90293.0,90292.0,0.055373]
[1731863958691,0.16515312,90297.0,90291.0,0.19915569]
[1731863958896,0.16515312,90297.0,90290.0,8.152e-05]
[1731863958897,0.0001198,90299.0,90298.0,0.055369]
[1731863959204,0.0001198,90299.0,90298.0,0.68147414]
[1731863959394,0.0001198,90299.0,90298.0,0.416169]
[1731863959705,0.0001198,90299.0,90298.0,0.504489]
[1731863960703,0.3608,90315.0,90313.0,0.05536]
[1731863961694,0.00012182,90314.0,90313.0,0.05536]
[1731863964399,0.00012182,90314.0,90308.0,0.19902006]
[1731863964606,0.00012182,90314.0,90308.0,0.10572391]
[1731863964805,0.05385264,90313.0,90308.0,0.05036091]
[1731863964992,0.05385264,90313.0,90307.0,0.0052]
[1731863965493,0.05385278,90312.0,90307.0,0.0052]
[1731863965696,0.05385278,90311.0,90307.0,0.0052]
[1731863965898,0.00012182,90314.0,90306.0,0.08828]
[1731863965899,0.05385278,90310.0,90306.0,0.08828]
[1731863966206,0.05385278,90309.0,90307.0,0.055363]
[1731863966507,0.00012182,90314.0,90310.0,0.055362]
[1731863966712,0.25235243,90314.0,90310.0,0.055362]
[1731863966900,0.0538528,90313.0,90310.0,0.055362]
[1731863967304,0.0538528,90312.0,90306.0,0.08828]
[1731863967606,0.0538528,90311.0,90306.0,0.13914728]
[1731863967811,0.16504978,90307.0,90306.0,0.13914728]
[1731863968108,0.16504978,90308.0,90306.0,0.13914728]
[1731863968314,0.16504978,90307.0,90306.0,0.13914728]
[1731863968515,0.16504978,90308.0,90306.0,0.13914728]
[1731863968697,0.16504978,90307.0,90306.0,0.13914728]
[1731863969010,0.16504978,90307.0,90306.0,0.19451128]
[1731863969512,0.16504978,90307.0,90306.0,0.55531128]
[1731863969699,0.16503242,90308.0,90306.0,0.49994728]
[1731863969896,0.00012182,90314.0,90306.0,0.49994728]
[1731863969897,0.16503242,90309.0,90306.0,0.49994728]
[1731863970299,0.16503242,90309.0,90307.0,0.055363]
[1731863971713,0.16503242,90309.0,90306.0,0.50102728]
[1731863971714,0.16503242,90311.0,90309.0,0.055362]
[1731863971900,0.00012182,90314.0,90313.0,0.05536]
[1731863972515,0.05397286,90314.0,90313.0,0.05536]
[1731863972900,0.00012182,90314.0,90313.0,0.05536]
[1731863977215,0.0328,90334.0,90313.0,0.15087508]
[1731863977513,0.0052,90343.0,90339.0,0.055344]
[1731863977708,0.055339,90347.0,90333.0,0.055347]
[1731863977910,0.05534,90346.0,90342.0,0.055342]
[1731863978211,0.0504296,90347.0,90344.0,0.055341]
[1731863978412,8.785e-05,90345.0,90344.0,0.055341]
[1731863978805,0.055343,90341.0,90340.0,0.0052]
[1731863979012,0.055347,90334.0,90333.0,0.0052]
[1731863979207,0.05535,90330.0,90327.0,0.20377937]
[1731863979411,0.05535,90330.0,90325.0,0.19857937]
[1731863979720,0.05383836,90329.0,90326.0,0.055352]
[1731863979905,0.05383836,90328.0,90327.0,0.055351]
[1731863980607,0.25192,90328.0,90327.0,0.055351]
[1731863980802,0.25192,90328.0,90322.0,0.08297703]
[1731863980803,0.05383836,90328.0,90322.0,0.08297703]
[1731863981011,0.19796908,90326.0,90322.0,0.08297703]
[1731863981207,0.19796908,90326.0,90324.0,0.055353]
[1731863982219,0.25180744,90325.0,90324.0,0.055353]
[1731863982714,0.19796908,90325.0,90324.0,0.055353]
[1731863983117,0.19796908,90325.0,90322.0,0.08297703]
[1731863983118,0.05383836,90325.0,90322.0,0.08297703]
[1731863983319,0.05383836,90325.0,90323.0,0.055354]
[1731863983518,0.05383836,90324.0,90323.0,0.055354]
[1731863983710,0.19796908,90329.0,90322.0,0.08297703]
[1731863983711,0.19796908,90329.0,90328.0,0.055351]
[1731863984420,0.055344,90338.0,90334.0,0.055347]
[1731863984613,0.14322846,90337.0,90334.0,0.055347]
[1731863984820,0.055347,90334.0,90322.0,0.08297703]
[1731863985121,0.19801501,90330.0,90329.0,0.05535]
[1731863985509,0.19801501,90330.0,90322.0,0.08297703]
[1731863985510,0.055344,90339.0,90333.0,0.055347]
[1731863985826,0.14315118,90338.0,90333.0,0.055347]
[1731863986012,0.14315118,90337.0,90333.0,0.055347]
[1731863986310,0.14315118,90336.0,90333.0,0.055347]
[1731863986514,0.14344464,90335.0,90333.0,0.055347]
[1731863986819,0.055344,90339.0,90333.0,0.055347]
[1731863987121,0.14356131,90338.0,90337.0,0.055345]
[1731863987722,0.055344,90339.0,90337.0,0.055345]
[1731863988818,0.3608,90341.0,90337.0,0.055345]
[1731863988819,0.3608,90341.0,90339.0,0.055344]
[1731863989214,0.3608,90341.0,90337.0,0.09551508]
[1731863989414,0.3608,90341.0,90340.0,0.055343]
[1731863995030,0.3608,90341.0,90340.0,0.085543]
[1731863995414,0.3608,90341.0,90340.0,0.0302]
[1731863995620,0.3608,90341.0,90339.0,0.055344]
[1731863999923,0.055341,90344.0,90340.0,0.055343]
[1731864001124,0.055342,90343.0,90340.0,0.055343]
[1731864001329,8.785e-05,90345.0,90339.0,0.04894623]
[1731864001330,0.055343,90341.0,90339.0,0.04894623]
[1731864001525,0.055343,90341.0,90332.0,0.12026]
[1731864001729,0.055343,90341.0,90338.0,0.055344]
[1731864002126,0.055343,90340.0,90338.0,0.055344]
[1731864002326,0.36088785,90345.0,90332.0,0.08238178]
[1731864002518,8.785e-05,90345.0,90344.0,0.15085608]
[1731864002715,8.785e-05,90345.0,90344.0,0.09551508]
[1731864002915,0.19844171,90345.0,90344.0,0.15085608]
[1731864003135,0.05392545,90345.0,90344.0,0.15085608]
[1731864003517,8.785e-05,90345.0,90344.0,0.18165608]
[1731864006026,8.785e-05,90345.0,90344.0,0.086141]
[1731864006326,0.36088785,90345.0,90344.0,0.086141]
[1731864006517,0.41471891,90345.0,90344.0,0.086141]
[1731864007218,0.05391891,90345.0,90344.0,0.086141]
[1731864007427,8.785e-05,90345.0,90344.0,0.086141]
[1731864011029,8.785e-05,90345.0,90344.0,0.28495596]
[1731864011333,8.785e-05,90345.0,90344.0,0.086141]
[1731864011536,8.785e-05,90345.0,90344.0,0.28495596]
[1731864011928,8.785e-05,90345.0,90344.0,0.086141]
[1731864015029,8.785e-05,90345.0,90344.0,0.09652345]
[1731864016220,0.1323274,90369.0,90361.0,0.05533]
[1731864016425,0.1323274,90372.0,90367.0,0.055326]
[1731864016625,0.1323274,90373.0,90367.0,0.055326]
[1731864016836,0.1323274,90374.0,90367.0,0.055326]
[1731864017263,7.934e-05,90373.0,90367.0,0.055326]
[1731864017459,7.934e-05,90373.0,90369.0,0.055325]
[1731864017669,7.934e-05,90373.0,90370.0,0.00491345]
[1731864017869,7.934e-05,90373.0,90371.0,0.055324]
[1731864018054,0.16535995,90372.0,90371.0,0.055324]
[1731864018256,0.16535392,90372.0,90371.0,0.055324]
[1731864018454,7.934e-05,90373.0,90371.0,0.055324]
[1731864018759,7.934e-05,90373.0,90372.0,0.00491345]
[1731864019157,7.934e-05,90373.0,90372.0,0.36571345]
[1731864019366,0.13230648,90373.0,90372.0,0.36571345]
[1731864019573,7.934e-05,90373.0,90372.0,0.36571345]
[1731864020773,7.934e-05,90373.0,90372.0,0.45483345]
[1731864021257,7.934e-05,90373.0,90372.0,0.09403345]
[1731864025051,7.934e-05,90373.0,90372.0,0.00491345]
[1731864039256,0.16543326,90373.0,90372.0,0.00491345]
[1731864039449,7.934e-05,90373.0,90372.0,0.00491345]
[1731864039651,0.05389764,90373.0,90372.0,0.00491345]
[1731864039952,7.934e-05,90373.0,90372.0,0.00491345]
[1731864042957,0.055327,90367.0,90366.0,9.986e-05]
[1731864043163,0.416127,90367.0,90366.0,9.986e-05]
[1731864043457,0.9133535,90367.0,90366.0,9.986e-05]
[1731864043659,0.80195724,90367.0,90366.0,9.986e-05]
[1731864043961,0.055332,90358.0,90357.0,0.0052]
[1731864044157,0.055332,90358.0,90348.0,0.0052]
[1731864044158,0.055335,90354.0,90348.0,0.0052]
[1731864044459,0.055335,90354.0,90348.0,0.060538]
[1731864044655,0.055335,90354.0,90348.0,0.0052]
[1731864044849,0.055335,90354.0,90353.0,0.056995]
[1731864045552,0.055335,90354.0,90353.0,0.00166]
[1731864047667,0.3608,90356.0,90354.0,0.055335]
[1731864048554,0.3608,90356.0,90354.0,0.15085008]
[1731864049051,0.3608,90356.0,90354.0,0.18145008]
[1731864053366,0.05533,90361.0,90354.0,0.12611508]
[1731864053551,0.05533,90361.0,90355.0,0.055333]
[1731864053753,0.05533,90361.0,90354.0,0.12611508]
[1731864054060,0.05533,90361.0,90356.0,0.055333]
[1731864054261,0.05533,90361.0,90354.0,0.17554083]
[1731864054466,0.05533,90361.0,90358.0,0.055332]
[1731864054467,0.3608,90360.0,90358.0,0.055332]
[1731864054851,0.52615609,90360.0,90358.0,0.055332]
[1731864055163,0.3608,90360.0,90358.0,0.055332]
[1731864055957,0.16535609,90360.0,90358.0,0.055332]
[1731864056154,0.08891934,90373.0,90362.0,0.05533]
[1731864056155,0.16535609,90363.0,90362.0,0.05533]
[1731864056359,0.16535609,90364.0,90362.0,0.05533]
[1731864056568,0.16535609,90365.0,90364.0,0.055328]
[1731864056860,0.16535609,90365.0,90362.0,0.05533]
[1731864057061,0.16535609,90367.0,90363.0,0.3608]
[1731864057273,0.16535609,90370.0,90366.0,0.09551508]
[1731864057580,0.16535609,90371.0,90369.0,0.055325]
[1731864058264,0.16543543,90373.0,90367.0,0.0618]
[1731864058459,7.934e-05,90373.0,90371.0,0.055324]
[1731864058656,7.934e-05,90373.0,90372.0,0.0325]
[1731864058956,7.934e-05,90373.0,90372.0,0.087824]
[1731864060563,0.13223594,90373.0,90372.0,0.087824]
[1731864061267,0.13223048,90373.0,90372.0,0.087824]
[1731864061466,7.934e-05,90373.0,90372.0,0.087824]
[1731864062764,7.934e-05,90373.0,90372.0,0.13808606]
[1731864062965,7.934e-05,90373.0,90372.0,0.087824]
[1731864063177,7.934e-05,90373.0,90372.0,0.0325]
[1731864063570,0.05540234,90373.0,90372.0,0.0325]
[1731864064254,0.05540234,90373.0,90372.0,0.087824]
[1731864065066,7.934e-05,90373.0,90366.0,0.055327]
[1731864065364,0.055326,90369.0,90367.0,0.055327]
[1731864066170,0.3608,90370.0,90363.0,0.0052]
[1731864066362,0.055325,90369.0,90362.0,0.10428971]
[1731864066562,0.3608,90370.0,90362.0,0.055329]
[1731864066864,0.055328,90365.0,90364.0,0.055328]
[1731864067868,0.416125,90370.0,90369.0,0.055325]
[1731864068268,0.3608,90370.0,90369.0,0.055325]
[1731864068468,7.934e-05,90373.0,90372.0,0.055324]
[1731864069882,0.05540234,90373.0,90372.0,0.055324]
[1731864070172,0.055326,90368.0,90367.0,0.055327]
[1731864070490,0.055329,90363.0,90362.0,0.25414788]
[1731864070775,0.3608,90368.0,90353.0,0.060535]
[1731864070776,0.055335,90354.0,90353.0,0.060535]
[1731864070973,0.3608,90354.0,90353.0,0.055335]
[1731864073064,0.416135,90354.0,90353.0,0.055335]
[1731864074379,0.3608,90354.0,90353.0,0.055335]
[1731864075165,0.3608,90354.0,90350.0,0.09551508]
[1731864075166,0.055329,90364.0,90361.0,0.05533]
[1731864075566,0.13214793,90367.0,90361.0,0.05533]
[1731864075768,0.49294793,90368.0,90361.0,0.05533]
[1731864075972,0.49294793,90368.0,90359.0,0.09551508]
[1731864076182,0.3608,90368.0,90367.0,0.15084208]
[1731864077876,0.19838219,90377.0,90367.0,0.15084208]
[1731864077877,0.13234493,90370.0,90368.0,0.33196]
[1731864078073,0.0052,90397.0,90375.0,0.09551508]
[1731864078276,0.4608,90400.0,90388.0,0.09551508]
[1731864078582,0.46136001,90400.0,90389.0,0.0329]
[1731864078787,0.46136001,90400.0,90398.0,0.055307]
[1731864078982,0.00014272,90399.0,90398.0,0.055307]
[1731864092396,0.00014272,90399.0,90394.0,0.05067318]
[1731864092593,0.00014272,90399.0,90391.0,0.0052]
[1731864092781,0.00014272,90399.0,90398.0,0.055307]
[1731864093798,0.05544972,90399.0,90398.0,0.055307]
[1731864098398,0.05544972,90399.0,90391.0,0.0052]
[1731864098399,0.055311,90392.0,90391.0,0.0052]
[1731864098595,0.3608,90392.0,90383.0,0.0052]
[1731864098791,0.055315,90387.0,90386.0,0.055314]
[1731864102903,0.3608,90392.0,90379.0,0.05241756]
[1731864103098,0.3608,90380.0,90379.0,0.10773656]
[1731864104403,0.3608,90380.0,90379.0,0.05697852]
[1731864104798,0.3608,90380.0,90379.0,0.00165952]
[1731864105395,0.3608,90380.0,90371.0,0.060524]
[1731864105595,0.3608,90372.0,90371.0,0.0052]
[1731864105798,0.3608,90372.0,90367.0,0.05000874]
[1731864105995,0.3608,90372.0,90371.0,0.09551508]
[1731864107110,0.055321,90377.0,90372.0,0.055324]
[1731864107297,0.055321,90377.0,90373.0,0.055323]
[1731864107500,0.055321,90377.0,90374.0,0.055322]
[1731864110307,0.055321,90377.0,90375.0,0.055322]
[1731864113313,0.055326,90369.0,90364.0,0.09551508]
[1731864113515,0.416126,90369.0,90365.0,0.055328]
[1731864113805,0.416126,90369.0,90358.0,0.11321797]
[1731864113993,0.416126,90369.0,90366.0,0.055327]
[1731864114194,0.055326,90368.0,90366.0,0.055327]
[1731864115311,0.3608,90369.0,90368.0,0.055326]
[1731864115608,0.3608,90380.0,90379.0,0.055319]
[1731864116301,0.3608,90389.0,90375.0,0.09551508]
[1731864116302,0.055317,90383.0,90381.0,0.055318]
[1731864116507,0.055317,90383.0,90382.0,0.0329]
[1731864116704,0.416114,90389.0,90387.0,0.055314]
[1731864117003,0.3608,90389.0,90387.0,0.055314]
[1731864120611,0.416114,90389.0,90387.0,0.055314]
[1731864122097,0.16544534,90388.0,90387.0,0.055314]
[1731864122301,0.05381005,90388.0,90382.0,0.0329]
[1731864122504,0.16537155,90387.0,90386.0,0.055315]
[1731864123199,0.52617155,90389.0,90388.0,0.055314]
[1731864123816,0.3608,90389.0,90388.0,0.055314]
[1731864126211,0.16537155,90391.0,90382.0,0.12841508]
[1731864126412,0.16537155,90391.0,90390.0,0.15082808]
[1731864126603,0.16537155,90392.0,90390.0,0.15082808]
[1731864126805,0.16547326,90393.0,90390.0,0.09551508]
[1731864127009,0.16547326,90398.0,90395.0,0.05531]
[1731864127316,0.00014272,90399.0,90397.0,0.15082308]
[1731864128213,0.16561598,90399.0,90397.0,0.15082308]
[1731864128412,0.00014272,90399.0,90397.0,0.15082308]
[1731864131123,0.00014272,90399.0,90398.0,0.08620163]
[1731864131420,0.00014272,90399.0,90398.0,0.14150963]
[1731864132712,0.00014272,90399.0,90398.0,0.47338963]
[1731864132914,0.00014272,90399.0,90398.0,0.14150963]
[1731864138630,0.00014272,90399.0,90398.0,0.50230963]
[1731864139024,0.00014272,90399.0,90398.0,0.00012163]
[1731864139334,0.05544972,90399.0,90398.0,0.00012163]
[1731864139634,0.05544972,90399.0,90398.0,0.05542963]
[1731864139635,0.00014272,90399.0,90398.0,0.05542963]
[1731864140931,0.00014272,90399.0,90398.0,0.14150963]
[1731864145232,0.00014272,90399.0,90398.0,0.34018702]
[1731864145426,0.00014272,90399.0,90398.0,0.14150963]
[1731864147025,0.00014272,90399.0,90398.0,0.05542963]
[1731864147232,0.16561598,90399.0,90398.0,0.05542963]
[1731864147430,0.10924836,90399.0,90398.0,0.00012163]
[1731864147628,0.08404136,90399.0,90398.0,0.05542963]
[1731864147829,0.19871568,90399.0,90398.0,0.05542963]
[1731864148129,0.05394136,90399.0,90398.0,0.05542963]
[1731864148532,0.25251432,90399.0,90398.0,0.05542963]
[1731864148932,0.05394136,90399.0,90398.0,0.05542963]
[1731864149343,0.00014272,90399.0,90398.0,0.05542963]
[1731864149636,0.05394136,90399.0,90398.0,0.05542963]
[1731864151226,0.10924836,90399.0,90398.0,0.00012163]
[1731864152042,0.25540982,90399.0,90398.0,0.00012163]
[1731864152237,0.25540982,90399.0,90393.0,0.0852]
[1731864152434,0.25540982,90399.0,90397.0,0.19867739]
[1731864152435,0.00014272,90399.0,90397.0,0.19867739]
[1731864152733,0.055308,90398.0,90397.0,0.19867739]
[1731864153136,0.055308,90398.0,90397.0,0.25398539]
[1731864154444,0.055308,90398.0,90397.0,0.055308]
[1731864155241,0.00014272,90399.0,90394.0,0.26499504]
[1731864155242,0.13262964,90399.0,90398.0,0.055308]
[1731864155748,0.00014272,90399.0,90398.0,0.15082308]
[1731864158540,0.00014272,90399.0,90398.0,0.055308]
[1731864158929,0.00014272,90399.0,90398.0,0.38667114]
[1731864159129,0.00014272,90399.0,90398.0,0.7148847]
[1731864159535,0.00014272,90399.0,90398.0,0.055308]
[1731864159536,0.05394139,90399.0,90398.0,0.055308]
[1731864161144,0.05394139,90399.0,90398.0,0.1062729]
[1731864161836,0.05394139,90399.0,90398.0,0.1914729]
[1731864163642,0.00014272,90399.0,90398.0,0.1914729]
[1731864163843,0.05394237,90399.0,90398.0,0.1914729]
[1731864164442,0.25267275,90399.0,90398.0,0.1914729]
[1731864165241,0.05394237,90399.0,90398.0,0.1914729]
[1731864167438,0.00014272,90399.0,90398.0,0.51942205]
[1731864168344,0.00014272,90399.0,90398.0,0.85113332]
[1731864168550,0.00014272,90399.0,90398.0,0.85113637]
[1731864169542,0.00014272,90399.0,90398.0,0.5194251]
[1731864169744,0.00014272,90399.0,90398.0,0.5514251]
[1731864174559,0.00014272,90399.0,90398.0,0.42246159]
[1731864176563,0.00014272,90399.0,90398.0,0.2234729]
[1731864181861,0.16583198,90406.0,90398.0,0.1681649]
[1731864182058,0.16583198,90405.0,90404.0,0.15081908]
[1731864182666,0.3608,90412.0,90411.0,0.0553]
[1731864182867,0.3608,90412.0,90411.0,0.15081508]
[1731864183464,0.13264534,90413.0,90411.0,0.09551508]
[1731864183667,0.13264534,90413.0,90412.0,0.055299]
[1731864184455,0.13264534,90413.0,90411.0,0.09551508]
[1731864184456,0.3608,90417.0,90415.0,0.055297]
[1731864184665,0.3608,90417.0,90415.0,0.32065417]
[1731864184963,0.3608,90417.0,90414.0,0.26535717]
[1731864185163,0.055297,90415.0,90414.0,0.26535717]
[1731864185364,0.3608,90417.0,90406.0,0.055303]
[1731864185663,0.3608,90417.0,90414.0,0.26540374]
[1731864185869,0.055297,90415.0,90414.0,0.26540374]
[1731864187267,0.055297,90415.0,90414.0,0.32070174]
[1731864187573,0.055298,90414.0,90413.0,0.26540374]
[1731864189569,0.0553,90411.0,90410.0,0.26540374]
[1731864189770,0.0553,90411.0,90410.0,0.32070374]
[1731864191461,0.0553,90411.0,90410.0,0.0553]
[1731864191675,0.055297,90415.0,90414.0,0.055297]
[1731864191899,0.055297,90415.0,90414.0,0.25435714]
[1731864192496,0.055297,90415.0,90414.0,0.055297]
[1731864193095,0.3608,90417.0,90413.0,0.19906014]
[1731864193096,0.52663198,90417.0,90413.0,0.09551508]
[1731864193286,0.3608,90417.0,90416.0,0.055297]
[1731864193788,0.13275581,90418.0,90417.0,0.055296]
[1731864193993,0.13274811,90418.0,90417.0,0.055296]
[1731864194186,7.863e-05,90418.0,90417.0,0.055296]
[1731864198468,0.16576838,90418.0,90417.0,0.055296]
[1731864198677,7.863e-05,90418.0,90417.0,0.055296]
[1731864199066,0.16574151,90418.0,90417.0,0.055296]
[1731864200067,7.863e-05,90418.0,90417.0,0.055296]
[1731864203185,7.863e-05,90418.0,90417.0,0.15081108]
[1731864203390,0.16566288,90427.0,90417.0,0.10588894]
[1731864203678,0.16556012,90430.0,90424.0,0.09551508]
[1731864203882,0.16556012,90430.0,90429.0,0.15080408]
[1731864204077,0.16556012,90431.0,90429.0,0.09551508]
[1731864204273,0.16556012,90431.0,90430.0,0.055288]
[1731864204480,0.16556012,90432.0,90431.0,0.055288]
[1731864204676,0.00177073,90443.0,90432.0,0.055287]
[1731864204879,0.00177073,90443.0,90431.0,0.09551508]
[1731864204880,0.00177073,90443.0,90442.0,0.09551508]
[1731864205785,0.05705073,90443.0,90442.0,0.09551508]
[1731864205985,0.05705073,90443.0,90427.0,0.33164247]
[1731864205986,0.055281,90442.0,90440.0,0.19852926]
[1731864206186,0.055281,90442.0,90434.0,0.2650972]
[1731864206187,0.055283,90438.0,90437.0,0.19852926]
[1731864206371,0.055283,90438.0,90430.0,0.2650972]
[1731864206372,0.055284,90437.0,90436.0,0.19852926]
[1731864206582,0.055284,90437.0,90429.0,0.0838]
[1731864206583,0.055284,90436.0,90435.0,0.19852926]
[1731864206769,0.055285,90435.0,90434.0,0.19852926]
[1731864206969,0.055285,90435.0,90429.0,0.0838]
[1731864206970,0.055286,90434.0,90433.0,0.19852926]
[1731864207172,0.055286,90434.0,90428.0,0.19852926]
[1731864207384,0.055286,90434.0,90424.0,0.19852926]
[1731864207385,0.3608,90430.0,90424.0,0.19852926]
[1731864207583,0.055292,90424.0,90423.0,0.19852926]
[1731864207885,0.055292,90424.0,90423.0,0.055292]
[1731864208978,0.055292,90423.0,90421.0,0.055293]
[1731864209191,0.3608,90430.0,90421.0,0.055293]
[1731864209192,0.416093,90422.0,90421.0,0.055293]
[1731864211283,0.3608,90422.0,90421.0,0.055293]
[1731864211787,0.055284,90437.0,90436.0,0.055282]
[1731864211992,0.055282,90441.0,90438.0,0.055283]
[1731864212180,0.3608,90442.0,90436.0,0.09551508]
[1731864212382,0.055282,90440.0,90439.0,0.055283]
[1731864212687,0.3608,90442.0,90436.0,0.09551508]
[1731864212688,0.3608,90442.0,90441.0,0.055281]
[1731864215289,0.055283,90439.0,90437.0,0.0838]
[1731864215590,0.3608,90442.0,90436.0,0.0838]
[1731864215890,0.055284,90437.0,90436.0,0.139084]
[1731864219782,0.10906521,90437.0,90436.0,0.02277645]
[1731864221990,0.05378121,90437.0,90436.0,0.02277645]
[1731864222292,0.055283,90439.0,90438.0,0.055283]
[1731864222498,0.10906294,90439.0,90438.0,0.055283]
[1731864223296,0.25397672,90439.0,90438.0,0.055283]
[1731864223486,0.30775666,90439.0,90438.0,0.055283]
[1731864224286,0.10906294,90439.0,90438.0,0.055283]
[1731864225685,0.05377994,90439.0,90438.0,0.055283]
[1731864225883,0.05377994,90439.0,90433.0,0.0838]
[1731864225884,0.19879127,90439.0,90433.0,0.0838]
[1731864226084,0.3608,90442.0,90438.0,0.09551508]
[1731864226285,0.05377956,90441.0,90440.0,0.055282]
[1731864227784,0.3608,90442.0,90438.0,0.09551508]
[1731864227991,0.3608,90442.0,90441.0,0.055281]
[1731864228387,0.00011168,90443.0,90442.0,0.055281]
[1731864228589,0.00011168,90443.0,90442.0,0.119581]
[1731864228795,0.00011168,90443.0,90442.0,0.7874921]
[1731864229191,0.00011168,90443.0,90442.0,0.119581]
[1731864232300,0.00011168,90443.0,90442.0,0.16978397]
[1731864233499,0.04956217,90464.0,90442.0,0.59694152]
[1731864233793,0.416067,90465.0,90463.0,0.15078208]
[1731864234603,0.00056001,90474.0,90472.0,0.055262]
[1731864234792,0.00056001,90474.0,90464.0,1.23255508]
[1731864234793,0.23109525,90477.0,90473.0,0.48771508]
[1731864234995,0.19371819,90476.0,90474.0,0.0838]
[1731864235295,0.05376248,90475.0,90474.0,0.139061]
[1731864235594,0.19839879,90478.0,90477.0,0.055259]